fUST/lending_fUST_20240613
["ID","MTS","AMOUNT","RATE_DAILY","PERIOD"]
[329324339,1718244662036,-272.72204939,0.00019178,2]
[329324340,1718244662047,-500.0,0.00019178,2]
[329324341,1718244662058,-500.0,0.00019178,2]
[329324342,1718244662069,-500.0,0.00019178,2]
[329324343,1718244662080,-500.0,0.00019178,2]
[329324344,1718244662091,-361.00145835,0.00019178,2]
[329324345,1718244662103,-500.0,0.00019178,2]
[329324346,1718244662114,-500.0,0.00019178,2]
[329324347,1718244662126,-500.0,0.00019178,2]
[329324348,1718244662138,-213.43337255,0.00019178,2]
[329324349,1718244663095,-500.0,0.00016438,2]
[329324350,1718244663107,-500.0,0.00016438,2]
[329324351,1718244663119,-189.73765153,0.00016438,2]
[329324352,1718244663485,-310.26234847,0.00016438,2]
[329324353,1718244663497,-578.44,0.00016438,2]
[329324354,1718244663508,-500.0,0.00016438,2]
[329324355,1718244663522,-500.0,0.00016438,2]
[329324356,1718244663557,-500.0,0.00016712,2]
[329324357,1718244663574,-489.21224897,0.00016712,2]
[329324358,1718244663614,-506.13422528,0.00016712,2]
[329324359,1718244663660,-500.0,0.00016712,2]
[329324360,1718244663727,-500.0,0.00016986,2]
[329324361,1718244663748,-868.63,0.0001726,2]
[329324362,1718244663776,-868.63,0.00017534,2]
[329324363,1718244663796,-553.60486624,0.00017808,2]
[329324364,1718244663837,-500.0,0.00016712,2]
[329324365,1718244663860,-315.02513376,0.00017808,2]
[329324366,1718244663877,-208.64820785,0.00018082,2]
[329324367,1718244663896,-514.55065191,0.00018082,2]
[329324368,1718244663914,-1229.33739131,0.00018082,2]
[329324370,1718244747266,230.54885641,0.00010959,2]
[329324371,1718244747319,230.54885641,0.00010959,2]
[329324372,1718244747369,59.02228718,0.00010959,2]
[329324373,1718244751722,1902.09,0.00021917,30]
[329324374,1718244751901,1902.09,0.00022739,30]
[329324377,1718245339185,1743.58,0.00021917,30]
[329324378,1718245339438,1743.58,0.00022739,30]
[329324379,1718245416682,7999.13032461,0.000161,6]
[329324380,1718245491358,2005.16,0.00023,30]
[329324381,1718245574703,-13291.38837574,0.00016711,15]
[329324384,1718245651126,6645.69418787,0.00016712,15]
[329324389,1718245771729,29195.00342977,0.00016712,15]
[329324512,1718245834750,-168.5929868,0.00015233,2]
[329324514,1718245834762,-300.0,0.00015514,2]
[329324516,1718245834776,-2554.86381364,0.00015515,2]
[329324518,1718245834791,-584.95296827,0.00015515,2]
[329324520,1718245834806,-774.65,0.00015515,2]
[329324525,1718245834844,-11170.11302551,0.00015515,2]
[329324527,1718245834855,-1096.18869877,0.00016338,2]
[329324529,1718245834868,-698.44640905,0.00016338,2]
[329324531,1718245834881,-981.84113583,0.00016436,2]
[329324533,1718245834893,-205.20715136,0.00016436,2]
[329324535,1718245834904,-1462.19304162,0.00016436,2]
[329324537,1718245834918,-196.02047288,0.00016436,2]
[329324539,1718245834930,-158.8446968,0.00016436,2]
[329324541,1718245834945,-182.17858211,0.00016436,2]
[329324542,1718245834967,-259.82776431,0.00016436,2]
[329324544,1718245834983,-305.20264469,0.00016436,2]
[329324547,1718245834994,-2995.71262963,0.00016436,2]
[329324550,1718245835008,-155.91179717,0.00016437,2]
[329324552,1718245835019,-304.72950229,0.00016437,2]
[329324555,1718245835045,-763.76564802,0.00016437,2]
[329324558,1718245835056,-502.70941043,0.00016438,2]
[329324563,1718245835076,-501.52932027,0.00016438,2]
[329324565,1718245835098,-500.0,0.00016438,2]
[329324568,1718245835109,-500.0,0.00016438,2]
[329324571,1718245835120,-500.0,0.00016438,2]
[329324573,1718245835130,-503.06086994,0.00016438,2]
[329324576,1718245835141,-500.0,0.00016438,2]
[329324580,1718245835156,-500.0,0.00016438,2]
[329324584,1718245835186,-153.48733593,0.00016438,2]
[329324587,1718245835210,-502.50530048,0.00016438,2]
[329324590,1718245835226,-505.00962451,0.00016438,2]
[329324593,1718245835250,-500.0,0.00016438,2]
[329324597,1718245835267,-285.81630428,0.00016438,2]
[329324600,1718245835288,-214.18369572,0.00016438,2]
[329324605,1718245835319,-501.65688863,0.00016438,2]
[329324606,1718245835332,-27.96524776,0.00016438,2]
[329324610,1718245835408,-283.67659983,0.00016438,2]
[329324785,1718245840596,-188.35815241,0.00016438,2]
[329324787,1718245840615,-500.0,0.00016438,2]
[329324788,1718245840636,-504.27246957,0.00016438,2]
[329324791,1718245840665,-500.0,0.00016438,2]
[329324794,1718245840725,-500.0,0.00016438,2]
[329324796,1718245840748,-500.0,0.00016438,2]
[329324797,1718245840772,-412.03853254,0.00016438,2]
[329324800,1718245840790,-87.96146746,0.00016438,2]
[329324803,1718245840802,-500.0,0.00016438,2]
[329324806,1718245840813,-500.0,0.00016438,2]
[329324809,1718245840850,-500.0,0.00016438,2]
[329324812,1718245840862,-500.0,0.00016438,2]
[329324815,1718245840874,-504.11233362,0.00016438,2]
[329324818,1718245840903,-500.0,0.00016438,2]
[329324820,1718245840914,-527.17049474,0.00016438,2]
[329324822,1718245840930,-500.0,0.00016438,2]
[329324826,1718245840944,-479.03199738,0.00016438,2]
[329324843,1718245841128,-20.96800262,0.00016438,2]
[329324846,1718245841148,-500.0,0.00016438,2]
[329324847,1718245841162,-500.0,0.00016438,2]
[329324849,1718245841173,-500.0,0.00016438,2]
[329324852,1718245841187,-353.50807714,0.00016438,2]
[329324854,1718245841202,-739.29,0.00016438,2]
[329324856,1718245841213,-500.0,0.00016438,2]
[329324857,1718245841230,-500.0,0.00016438,2]
[329324860,1718245841245,-500.0,0.00016438,2]
[329324865,1718245841277,-500.0,0.00016438,2]
[329324867,1718245841320,-500.0,0.00016438,2]
[329324868,1718245841334,-500.0,0.00016438,2]
[329324870,1718245841351,-675.68,0.00016438,2]
[329324873,1718245841374,-506.17326596,0.00016438,2]
[329324876,1718245841409,-505.61175352,0.00016438,2]
[329324878,1718245841430,-500.0,0.00016438,2]
[329324879,1718245841447,-352.59451654,0.00016438,2]
[329324881,1718245841458,-500.0,0.00016438,2]
[329324883,1718245841471,-500.0,0.00016438,2]
[329324885,1718245841485,-338.91922912,0.00016438,2]
[329324887,1718245841505,-500.0,0.00016438,2]
[329324889,1718245841525,-500.0,0.00016438,2]
[329324891,1718245841536,-500.0,0.00016438,2]
[329324892,1718245841552,-500.0,0.00016438,2]
[329324895,1718245841575,-500.0,0.00016438,2]
[329324896,1718245841604,-180.37142251,0.00016438,2]
[329324898,1718245841620,-500.0,0.00016438,2]
[329324900,1718245841637,-500.0,0.00016438,2]
[329324903,1718245841653,-502.57913896,0.00016438,2]
[329324904,1718245841677,-500.0,0.00016438,2]
[329324905,1718245841702,-500.0,0.00016438,2]
[329324906,1718245841726,-500.0,0.00016438,2]
[329324907,1718245841743,-500.0,0.00016438,2]
[329324908,1718245841754,-500.0,0.00016438,2]
[329324909,1718245841775,-652.96,0.00016438,2]
[329324910,1718245841805,-500.0,0.00016438,2]
[329324911,1718245841825,-500.0,0.00016438,2]
[329324913,1718245841841,-500.0,0.00016438,2]
[329324915,1718245841857,-500.0,0.00016438,2]
[329324918,1718245841894,-500.0,0.00016438,2]
[329324920,1718245841930,-500.0,0.00016438,2]
[329324923,1718245841963,-500.0,0.00016438,2]
[329324926,1718245841993,-500.0,0.00016438,2]
[329324927,1718245842048,-500.0,0.00016438,2]
[329324932,1718245842107,-500.0,0.00016438,2]
[329324934,1718245842126,-500.0,0.00016438,2]
[329324937,1718245842147,-500.0,0.00016438,2]
[329324940,1718245842188,-500.0,0.00016438,2]
[329324943,1718245842227,-692.56,0.00016438,2]
[329324946,1718245842249,-500.0,0.00016438,2]
[329324948,1718245842266,-500.0,0.00016438,2]
[329324950,1718245842298,-500.0,0.00016438,2]
[329324952,1718245842309,-500.0,0.00016438,2]
[329324954,1718245842322,-500.0,0.00016438,2]
[329324956,1718245842334,-500.0,0.00016438,2]
[329324958,1718245842356,-500.0,0.00016438,2]
[329324959,1718245842369,-972.43,0.00016438,2]
[329324961,1718245842387,-502.05286969,0.00016438,2]
[329324963,1718245842409,-694.9,0.00016438,2]
[329324965,1718245842428,-926.69,0.00016438,2]
[329324967,1718245842448,-500.0,0.00016438,2]
[329324970,1718245842463,-500.0,0.00016438,2]
[329324972,1718245842475,-607.10341095,0.00016438,2]
[329324974,1718245842488,-500.0,0.00016438,2]
[329324976,1718245842501,-500.0,0.00016438,2]
[329324977,1718245842513,-500.0,0.00016438,2]
[329324979,1718245842525,-500.0,0.00016438,2]
[329324981,1718245842544,-500.0,0.00016438,2]
[329324984,1718245842564,-500.0,0.00016438,2]
[329324986,1718245842579,-500.0,0.00016438,2]
[329324988,1718245842596,-500.0,0.00016438,2]
[329324990,1718245842610,-500.0,0.00016438,2]
[329324992,1718245842623,-500.0,0.00016438,2]
[329324994,1718245842633,-500.0,0.00016438,2]
[329324996,1718245842657,-500.0,0.00016438,2]
[329324998,1718245842670,-500.0,0.00016438,2]
[329325000,1718245842682,-500.0,0.00016438,2]
[329325002,1718245842699,-500.0,0.00016438,2]
[329325005,1718245842725,-500.0,0.00016438,2]
[329325007,1718245842753,-500.0,0.00016438,2]
[329325011,1718245842769,-500.0,0.00016438,2]
[329325014,1718245842801,-500.0,0.00016438,2]
[329325017,1718245842818,-500.0,0.00016438,2]
[329325019,1718245842828,-500.0,0.00016438,2]
[329325021,1718245842842,-2179.23,0.00016438,2]
[329325023,1718245842852,-500.0,0.00016438,2]
[329325025,1718245842865,-500.0,0.00016438,2]
[329325027,1718245842878,-500.0,0.00016438,2]
[329325029,1718245842895,-500.0,0.00016438,2]
[329325031,1718245842913,-500.0,0.00016438,2]
[329325032,1718245842923,-500.0,0.00016438,2]
[329325034,1718245842935,-700.1,0.00016438,2]
[329325036,1718245842947,-505.65299135,0.00016438,2]
[329325037,1718245842960,-500.0,0.00016438,2]
[329325038,1718245842971,-700.1,0.00016438,2]
[329325040,1718245842988,-700.1,0.00016438,2]
[329325042,1718245843020,-1718.39,0.00016438,2]
[329325044,1718245843030,-500.0,0.00016438,2]
[329325045,1718245843061,-822.56,0.00016438,2]
[329325048,1718245843118,-500.0,0.00016438,2]
[329325051,1718245843134,-500.0,0.00016438,2]
[329325054,1718245843153,-500.0,0.00016438,2]
[329325056,1718245843182,-500.0,0.00016438,2]
[329325058,1718245843196,-500.0,0.00016438,2]
[329325060,1718245843209,-1160.61,0.00016438,2]
[329325062,1718245843225,-981.58,0.00016438,2]
[329325064,1718245843240,-500.0,0.00016438,2]
[329325066,1718245843252,-1548.65,0.00016438,2]
[329325068,1718245843276,-500.0,0.00016438,4]
[329325070,1718245843290,-500.0,0.00016438,2]
[329325072,1718245843304,-500.0,0.00016438,2]
[329325074,1718245843321,-523.42827847,0.00016438,2]
[329325075,1718245843332,-500.0,0.00016438,2]
[329325079,1718245843361,-500.0,0.00016438,2]
[329325083,1718245843384,-500.0,0.00016438,2]
[329325086,1718245843395,-500.0,0.00016438,2]
[329325089,1718245843406,-500.0,0.00016438,2]
[329325092,1718245843426,-2473.47,0.00016438,2]
[329325096,1718245843444,-500.0,0.00016438,2]
[329325097,1718245843459,-628.25,0.00016438,2]
[329325099,1718245843476,-2886.59,0.00016438,2]
[329325101,1718245843489,-500.0,0.00016438,2]
[329325102,1718245843500,-500.0,0.00016438,2]
[329325104,1718245843511,-500.0,0.00016438,2]
[329325107,1718245843534,-500.0,0.00016438,2]
[329325109,1718245843548,-500.0,0.00016438,2]
[329325112,1718245843565,-500.0,0.00016438,2]
[329325114,1718245843594,-503.27030233,0.00016438,2]
[329325117,1718245843613,-500.0,0.00016438,2]
[329325120,1718245843660,-500.0,0.00016438,2]
[329325121,1718245843685,-500.0,0.00016438,2]
[329325123,1718245843699,-500.0,0.00016438,2]
[329325124,1718245843714,-500.0,0.00016438,2]
[329325126,1718245843729,-532.69862621,0.00016438,2]
[329325128,1718245843747,-500.0,0.00016438,2]
[329325130,1718245843761,-245.17975661,0.00016438,2]
[329325132,1718245843774,-7479.87,0.00016438,2]
[329325135,1718245843829,-500.0,0.00016438,2]
[329325137,1718245843843,-500.0,0.00016438,2]
[329325139,1718245843869,-500.0,0.00016438,2]
[329325140,1718245843883,-500.0,0.00016438,2]
[329325143,1718245843919,-500.0,0.00016438,2]
[329325144,1718245843930,-500.0,0.00016438,2]
[329325147,1718245843957,-908.59,0.00016438,2]
[329325148,1718245843970,-5026.05,0.00016438,2]
[329325151,1718245843985,-839.14,0.00016438,2]
[329325153,1718245843999,-500.0,0.00016438,2]
[329325154,1718245844012,-500.0,0.00016438,2]
[329325156,1718245844033,-500.0,0.00016438,2]
[329325158,1718245844057,-504.46762103,0.00016438,2]
[329325160,1718245844079,-500.0,0.00016438,2]
[329325162,1718245844107,-500.75606427,0.00016438,2]
[329325164,1718245844125,-500.0,0.00016438,2]
[329325166,1718245844145,-500.0,0.00016438,2]
[329325168,1718245844157,-500.0,0.00016438,2]
[329325170,1718245844171,-500.0,0.00016438,2]
[329325172,1718245844194,-6873.16,0.00016438,2]
[329325174,1718245844218,-500.0,0.00016438,2]
[329325177,1718245844248,-500.0,0.00016438,2]
[329325178,1718245844276,-1965.0,0.00016438,2]
[329325180,1718245844291,-502.45775547,0.00016438,2]
[329325181,1718245844310,-500.0,0.00016438,2]
[329325184,1718245844344,-500.0,0.00016438,2]
[329325186,1718245844359,-1901.3,0.00016438,2]
[329325188,1718245844371,-919.86,0.00016438,2]
[329325190,1718245844386,-824.95,0.00016438,2]
[329325192,1718245844399,-167.85904735,0.00016438,2]
[329325195,1718245844416,-500.0,0.00016438,2]
[329325197,1718245844438,-500.0,0.00016438,2]
[329325199,1718245844452,-500.0,0.00016438,2]
[329325201,1718245844473,-500.0,0.00016438,2]
[329325204,1718245844491,-500.0,0.00016438,2]
[329325205,1718245844513,-500.0,0.00016438,2]
[329325207,1718245844524,-500.0,0.00016438,2]
[329325209,1718245844542,-500.0,0.00016438,2]
[329325210,1718245844556,-500.0,0.00016438,2]
[329325212,1718245844575,-519.0152433,0.00016438,2]
[329325214,1718245844587,-500.0,0.00016438,2]
[329325216,1718245844599,-500.0,0.00016438,2]
[329325217,1718245844611,-500.0,0.00016438,2]
[329325218,1718245844624,-3378.5,0.00016438,2]
[329325219,1718245844647,-500.0,0.00016438,2]
[329325220,1718245844664,-597.49,0.00016438,2]
[329325221,1718245844678,-1096.18869873,0.0001668,2]
[329325222,1718245844706,-500.0,0.0001671,2]
[329325223,1718245844721,-500.0,0.0001671,2]
[329325224,1718245844732,-700.1,0.0001671,2]
[329325225,1718245844747,-500.0,0.0001671,2]
[329325226,1718245844758,-514.5826985,0.00016711,2]
[329325227,1718245844800,-500.0,0.00016711,2]
[329325229,1718245844824,-700.1,0.00016711,2]
[329325230,1718245844836,-700.1,0.00016711,2]
[329325231,1718245844858,-500.0,0.00016711,2]
[329325232,1718245844897,-500.0,0.00016712,2]
[329325233,1718245844910,-500.0,0.00016712,2]
[329325234,1718245844931,-500.0,0.00016712,2]
[329325235,1718245844949,-500.0,0.00016712,2]
[329325236,1718245844960,-500.0,0.00016712,2]
[329325237,1718245844980,-453.90444358,0.00016712,2]
[329325238,1718245845000,-500.0,0.00016712,2]
[329325239,1718245845018,-500.0,0.00016712,2]
[329325241,1718245845040,-507.80413817,0.00016712,2]
[329325242,1718245845058,-500.0,0.00016712,2]
[329325243,1718245845100,-500.0,0.00016712,2]
[329325244,1718245845114,-506.90837901,0.00016712,2]
[329325245,1718245845125,-500.0,0.00016712,2]
[329325247,1718245845143,-500.0,0.00016712,2]
[329325248,1718245845174,-500.0,0.00016712,2]
[329325249,1718245845198,-500.0,0.00016712,2]
[329325251,1718245845212,-500.0,0.00016712,2]
[329325252,1718245845223,-500.0,0.00016712,2]
[329325254,1718245845235,-500.0,0.00016712,2]
[329325255,1718245845246,-500.0,0.00016712,2]
[329325256,1718245845260,-500.0,0.00016712,2]
[329325257,1718245845273,-739.29,0.00016712,2]
[329325258,1718245845295,-504.44550167,0.00016712,2]
[329325259,1718245845313,-500.0,0.00016712,2]
[329325260,1718245845329,-500.0,0.00016712,2]
[329325261,1718245845342,-520.04913974,0.00016712,2]
[329325262,1718245845353,-500.0,0.00016712,2]
[329325263,1718245845374,-675.68,0.00016712,2]
[329325265,1718245845390,-500.0,0.00016712,2]
[329325268,1718245845405,-500.0,0.00016712,2]
[329325270,1718245845416,-500.0,0.00016712,2]
[329325271,1718245845428,-500.0,0.00016712,2]
[329325274,1718245845441,-500.0,0.00016712,2]
[329325275,1718245845453,-500.0,0.00016712,2]
[329325277,1718245845466,-500.0,0.00016712,2]
[329325279,1718245845479,-500.0,0.00016712,2]
[329325282,1718245845510,-576.31191636,0.00016712,2]
[329325284,1718245845522,-500.0,0.00016712,2]
[329325286,1718245845541,-500.0,0.00016712,2]
[329325288,1718245845557,-520.22200289,0.00016712,2]
[329325289,1718245845568,-500.0,0.00016712,2]
[329325291,1718245845578,-500.0,0.00016712,2]
[329325293,1718245845589,-652.96,0.00016712,2]
[329325295,1718245845600,-646.6945969,0.00016712,2]
[329325297,1718245845612,-500.0,0.00016712,2]
[329325298,1718245845623,-500.0,0.00016712,2]
[329325299,1718245845644,-500.0,0.00016712,2]
[329325300,1718245845669,-500.0,0.00016712,2]
[329325301,1718245845683,-500.0,0.00016712,2]
[329325302,1718245845719,-506.55587308,0.00016712,2]
[329325303,1718245845752,-500.0,0.00016712,2]
[329325305,1718245845793,-500.0,0.00016712,2]
[329325308,1718245845821,-500.0,0.00016712,2]
[329325309,1718245845836,-500.0,0.00016712,2]
[329325311,1718245845848,-599.25662027,0.00016712,2]
[329325314,1718245845859,-692.56,0.00016712,2]
[329325316,1718245845870,-500.0,0.00016712,2]
[329325318,1718245845887,-500.0,0.00016712,2]
[329325320,1718245845906,-500.0,0.00016712,2]
[329325325,1718245845986,-500.0,0.00016712,2]
[329325327,1718245846023,-500.0,0.00016712,2]
[329325329,1718245846034,-500.0,0.00016712,2]
[329325331,1718245846045,-500.0,0.00016712,2]
[329325333,1718245846060,-972.43,0.00016712,2]
[329325335,1718245846070,-694.9,0.00016712,2]
[329325337,1718245846103,-926.69,0.00016712,2]
[329325339,1718245846116,-512.27824782,0.00016712,2]
[329325341,1718245846129,-500.0,0.00016712,2]
[329325343,1718245846140,-500.0,0.00016712,2]
[329325345,1718245846158,-500.0,0.00016712,2]
[329325347,1718245846176,-500.0,0.00016712,2]
[329325349,1718245846188,-500.0,0.00016712,2]
[329325351,1718245846211,-500.0,0.00016712,2]
[329325352,1718245846232,-589.11689146,0.00016712,2]
[329325355,1718245846253,-500.0,0.00016712,2]
[329325357,1718245846263,-500.0,0.00016712,2]
[329325359,1718245846274,-500.0,0.00016712,2]
[329325362,1718245846285,-510.3445727,0.00016712,2]
[329325364,1718245846297,-500.0,0.00016712,2]
[329325367,1718245846309,-500.0,0.00016712,2]
[329325370,1718245846333,-500.0,0.00016712,2]
[329325372,1718245846344,-500.0,0.00016712,2]
[329325375,1718245846359,-500.0,0.00016712,2]
[329325377,1718245846390,-500.0,0.00016712,2]
[329325381,1718245846402,-500.0,0.00016712,2]
[329325384,1718245846431,-500.0,0.00016712,2]
[329325387,1718245846449,-2179.23,0.00016712,2]
[329325390,1718245846461,-500.0,0.00016712,2]
[329325392,1718245846504,-364.97669699,0.00016712,2]
[329325395,1718245846525,-500.0,0.00016712,2]
[329325398,1718245846552,-500.0,0.00016712,2]
[329325401,1718245846571,-500.0,0.00016712,2]
[329325404,1718245846588,-500.0,0.00016712,2]
[329325407,1718245846607,-500.0,0.00016712,2]
[329325409,1718245846637,-1718.39,0.00016712,2]
[329325411,1718245846669,-507.23064043,0.00016712,2]
[329325414,1718245846699,-822.56,0.00016712,2]
[329325416,1718245846724,-506.21171746,0.00016712,2]
[329325418,1718245846738,-500.0,0.00016712,2]
[329325420,1718245846750,-248.35772437,0.00016712,2]
[329325423,1718245846765,-335.86494707,0.00016712,2]
[329325433,1718245846878,-500.0,0.00016712,2]
[329325435,1718245846905,-1160.61,0.00016712,2]
[329325438,1718245846936,-981.58,0.00016712,2]
[329325440,1718245846948,-500.0,0.00016712,2]
[329325443,1718245846964,-1548.65,0.00016712,2]
[329325446,1718245846993,-500.0,0.00016712,4]
[329325449,1718245847014,-500.0,0.00016712,2]
[329325452,1718245847032,-500.0,0.00016712,2]
[329325455,1718245847046,-500.0,0.00016712,2]
[329325457,1718245847057,-500.0,0.00016712,2]
[329325461,1718245847075,-500.0,0.00016712,2]
[329325465,1718245847117,-500.0,0.00016712,2]
[329325468,1718245847129,-2473.47,0.00016712,2]
[329325471,1718245847141,-500.0,0.00016712,2]
[329325473,1718245847152,-628.25,0.00016712,2]
[329325476,1718245847167,-2886.59,0.00016712,2]
[329325481,1718245847185,-500.0,0.00016712,2]
[329325485,1718245847204,-585.75006058,0.00016712,2]
[329325490,1718245847222,-500.0,0.00016712,2]
[329325492,1718245847234,-500.0,0.00016712,2]
[329325496,1718245847254,-500.0,0.00016712,2]
[329325498,1718245847272,-508.2248488,0.00016712,2]
[329325500,1718245847283,-500.0,0.00016712,2]
[329325504,1718245847295,-500.0,0.00016712,2]
[329325508,1718245847308,-500.0,0.00016712,2]
[329325514,1718245847325,-7479.87,0.00016712,2]
[329325518,1718245847337,-500.0,0.00016712,2]
[329325520,1718245847348,-581.89227138,0.00016712,2]
[329325525,1718245847361,-500.0,0.00016712,2]
[329325530,1718245847377,-500.0,0.00016712,2]
[329325534,1718245847401,-500.0,0.00016712,2]
[329325540,1718245847418,-500.0,0.00016712,2]
[329325544,1718245847429,-908.59,0.00016712,2]
[329325545,1718245847441,-5026.05,0.00016712,2]
[329325550,1718245847453,-839.14,0.00016712,2]
[329325556,1718245847468,-500.0,0.00016712,2]
[329325558,1718245847479,-500.0,0.00016712,2]
[329325561,1718245847490,-500.0,0.00016712,2]
[329325565,1718245847501,-500.0,0.00016712,2]
[329325570,1718245847519,-500.0,0.00016712,2]
[329325573,1718245847529,-500.0,0.00016712,2]
[329325577,1718245847542,-500.0,0.00016712,2]
[329325581,1718245847555,-500.0,0.00016712,2]
[329325583,1718245847566,-6873.16,0.00016712,2]
[329325587,1718245847579,-500.0,0.00016712,2]
[329325593,1718245847598,-1965.0,0.00016712,2]
[329325596,1718245847610,-500.0,0.00016712,2]
[329325599,1718245847621,-500.0,0.00016712,2]
[329325603,1718245847644,-1901.3,0.00016712,2]
[329325606,1718245847658,-919.86,0.00016712,2]
[329325610,1718245847692,-824.95,0.00016712,2]
[329325614,1718245847745,-439.28333055,0.00016712,2]
[329325616,1718245847783,-500.0,0.00016712,2]
[329325619,1718245847794,-500.0,0.00016712,2]
[329325623,1718245847805,-500.0,0.00016712,2]
[329325626,1718245847818,-511.52837509,0.00016712,2]
[329325632,1718245847835,-500.0,0.00016712,2]
[329325634,1718245847847,-400.013277,0.00016712,2]
[329325639,1718245847868,-500.0,0.00016712,2]
[329325643,1718245847887,-500.0,0.00016712,2]
[329325646,1718245847898,-500.0,0.00016712,2]
[329325648,1718245847910,-3378.5,0.00016712,2]
[329325651,1718245847922,-500.0,0.00016712,2]
[329325654,1718245847936,-597.49,0.00016712,2]
[329325657,1718245847949,-700.1,0.00016984,2]
[329325660,1718245847963,-500.0,0.00016985,2]
[329325663,1718245847976,-700.1,0.00016985,2]
[329325667,1718245847994,-700.1,0.00016985,2]
[329325670,1718245848008,-500.0,0.00016985,2]
[329325673,1718245848019,-500.0,0.00016986,2]
[329325676,1718245848033,-502.70369893,0.00016986,2]
[329325679,1718245848046,-500.0,0.00016986,2]
[329325685,1718245848082,-500.0,0.00016986,2]
[329325689,1718245848120,-472.77300943,0.00016986,2]
[329325693,1718245848140,-500.0,0.00016986,2]
[329325697,1718245848159,-500.0,0.00016986,2]
[329325700,1718245848173,-440.14971195,0.00016986,2]
[329325704,1718245848185,-500.0,0.00016986,2]
[329325707,1718245848203,-500.0,0.00016986,2]
[329325710,1718245848220,-500.0,0.00016986,2]
[329325714,1718245848237,-500.0,0.00016986,2]
[329325717,1718245848249,-500.0,0.00016986,2]
[329325720,1718245848262,-500.0,0.00016986,2]
[329325724,1718245848291,-507.48708702,0.00016986,2]
[329325727,1718245848314,-500.0,0.00016986,2]
[329325731,1718245848338,-500.0,0.00016986,2]
[329325736,1718245848362,-500.0,0.00016986,2]
[329325738,1718245848384,-739.29,0.00016986,2]
[329325741,1718245848396,-500.0,0.00016986,2]
[329325744,1718245848415,-500.0,0.00016986,2]
[329325746,1718245848428,-675.68,0.00016986,2]
[329325749,1718245848442,-500.0,0.00016986,2]
[329325751,1718245848454,-500.0,0.00016986,2]
[329325754,1718245848470,-500.0,0.00016986,2]
[329325756,1718245848482,-500.0,0.00016986,2]
[329325757,1718245848495,-500.0,0.00016986,2]
[329325760,1718245848509,-500.0,0.00016986,2]
[329325763,1718245848529,-500.0,0.00016986,2]
[329325768,1718245848559,-500.0,0.00016986,2]
[329325770,1718245848590,-500.0,0.00016986,2]
[329325773,1718245848607,-500.0,0.00016986,2]
[329325780,1718245848655,-500.0,0.00016986,2]
[329325785,1718245848679,-500.0,0.00016986,2]
[329325794,1718245848735,-652.96,0.00016986,2]
[329325798,1718245848757,-500.0,0.00016986,2]
[329325801,1718245848777,-500.0,0.00016986,2]
[329325803,1718245848794,-500.0,0.00016986,2]
[329325806,1718245848812,-500.0,0.00016986,2]
[329325808,1718245848841,-558.38595259,0.00016986,2]
[329325809,1718245848851,-500.0,0.00016986,2]